fUSD/lending_fUSD_20240630
["ID","MTS","AMOUNT","RATE_DAILY","PERIOD"]
[330682114,1719707439006,-1259.19,0.00013698,3]
[330682115,1719707439016,-897.13,0.00013698,3]
[330682116,1719707439025,-2469.25,0.00013698,3]
[330682117,1719707439035,-833.5,0.00013698,3]
[330682118,1719707439046,-1291.5,0.00013698,3]
[330682119,1719707439056,-500.0,0.00013698,3]
[330682120,1719707439067,-500.0,0.00013698,3]
[330682121,1719707439080,-500.0,0.00013698,3]
[330682122,1719707439090,-500.0,0.00013698,3]
[330682123,1719707439100,-645.94,0.00013698,3]
[330682124,1719707439110,-642.5,0.00013698,3]
[330682125,1719707439120,-968.24,0.00013698,3]
[330682126,1719707439130,-1804.6,0.00013698,3]
[330682127,1719707439140,-240.909842,0.00013698,2]
[330682128,1719707439150,-240.909842,0.00013698,2]
[330682129,1719707439164,-240.909842,0.00013698,2]
[330682130,1719707439175,-240.909842,0.00013698,2]
[330682131,1719707439185,-500.0,0.00013698,3]
[330682132,1719707439194,-500.0,0.00013698,3]
[330682133,1719707439205,-240.909842,0.00013698,2]
[330682134,1719707439216,-240.909842,0.00013698,2]
[330682135,1719707439225,-240.909842,0.00013698,2]
[330682136,1719707439236,-834.83,0.00013698,3]
[330682137,1719707439245,-240.909842,0.00013698,2]
[330682138,1719707439255,-500.0,0.00013698,3]
[330682139,1719707439266,-1651.65,0.00013698,3]
[330682140,1719707439276,-979.5,0.00013698,3]
[330682141,1719707439286,-500.0,0.00013698,3]
[330682142,1719707439296,-504.39,0.00013698,3]
[330682143,1719707439305,-500.0,0.00013698,3]
[330682144,1719707439315,-1182.49,0.00013698,3]
[330682145,1719707439325,-500.0,0.00013698,3]
[330682146,1719707439334,-500.0,0.00013698,3]
[330682147,1719707439344,-1385.49,0.00013698,3]
[330682148,1719707439353,-820.88,0.00013698,3]
[330682149,1719707439363,-505.54,0.00013698,3]
[330682150,1719707439372,-500.0,0.00013698,3]
[330682151,1719707439381,-1201.42,0.00013698,3]
[330682152,1719707439391,-500.0,0.00013698,3]
[330682153,1719707439400,-1951.36,0.00013698,3]
[330682154,1719707439410,-586.65,0.00013698,3]
[330682155,1719707439420,-661.41,0.00013698,3]
[330682156,1719707439429,-667.35,0.00013698,3]
[330682158,1719707439443,-2696.25,0.00013698,3]
[330682160,1719707439452,-628.96,0.00013698,3]
[330682161,1719707439462,-500.0,0.00013698,3]
[330682162,1719707439471,-838.46,0.00013698,3]
[330682163,1719707439481,-151.0,0.00013698,2]
[330682164,1719707439491,-500.0,0.00013698,3]
[330682165,1719707439500,-1208.29,0.00013698,3]
[330682166,1719707439510,-151.0,0.00013698,2]
[330682167,1719707439520,-151.0,0.00013698,2]
[330682168,1719707439530,-151.0,0.00013698,2]
[330682169,1719707439539,-549.97,0.00013698,3]
[330682170,1719707439549,-500.0,0.00013698,3]
[330682171,1719707439558,-2977.11,0.00013698,3]
[330682172,1719707439568,-1043.0,0.00013698,3]
[330682173,1719707439577,-500.0,0.00013698,3]
[330682174,1719707439587,-500.0,0.00013698,3]
[330682175,1719707439597,-395.01895338,0.00013698,3]
[330682176,1719707439606,-157.085641,0.00013698,2]
[330682177,1719707439616,-157.085641,0.00013698,2]
[330682178,1719707439626,-2206.55,0.00013698,3]
[330682179,1719707439635,-151.0,0.00013698,2]
[330682180,1719707439644,-157.085641,0.00013698,2]
[330682181,1719707439653,-151.0,0.00013698,2]
[330682182,1719707439664,-613.38,0.00013698,3]
[330682183,1719707439674,-157.085641,0.00013698,2]
[330682184,1719707439683,-500.0,0.00013698,3]
[330682185,1719707439693,-157.085641,0.00013698,2]
[330682186,1719707439703,-157.085641,0.00013698,2]
[330682187,1719707439713,-157.085641,0.00013698,2]
[330682188,1719707439723,-157.085641,0.00013698,2]
[330682189,1719707439732,-895.43,0.00013698,3]
[330682190,1719707439742,-500.0,0.00013698,3]
[330682191,1719707439752,-18292.98,0.00013698,3]
[330682192,1719707439762,-532.43,0.00013698,3]
[330682193,1719707439772,-618.91,0.00013698,3]
[330682194,1719707439782,-3493.64,0.00013698,3]
[330682195,1719707439792,-151.0,0.00013698,2]
[330682196,1719707439802,-151.0,0.00013698,2]
[330682197,1719707439811,-151.0,0.00013698,2]
[330682198,1719707439822,-151.0,0.00013698,2]
[330682199,1719707439831,-1107.0,0.00013698,3]
[330682200,1719707439842,-151.0,0.00013698,2]
[330682201,1719707439851,-2987.76,0.00013698,3]
[330682202,1719707439861,-586.27,0.00013698,3]
[330682203,1719707439871,-599.76,0.00013698,3]
[330682204,1719707439881,-983.34,0.00013698,3]
[330682205,1719707439892,-500.0,0.00013698,3]
[330682206,1719707439902,-500.0,0.00013698,3]
[330682207,1719707439913,-562.68,0.00013698,3]
[330682208,1719707439922,-1343.6,0.00013698,3]
[330682209,1719707439932,-468.17509793,0.00013698,3]
[330682210,1719707439942,-500.0,0.00013698,3]
[330682211,1719707439952,-912.78,0.00013698,3]
[330682212,1719707439962,-500.0,0.00013698,3]
[330682213,1719707439972,-996.1,0.00013698,3]
[330682214,1719707439983,-841.66,0.00013698,3]
[330682215,1719707439995,-1000.63,0.00013698,3]
[330682216,1719707440014,-500.0,0.00013698,3]
[330682217,1719707440024,-2320.85,0.00013698,3]
[330682218,1719707440034,-1860.29,0.00013698,3]
[330682219,1719707440044,-500.0,0.00013698,3]
[330682220,1719707440055,-500.0,0.00013698,3]
[330682221,1719707440064,-500.0,0.00013698,3]
[330682222,1719707440075,-500.0,0.00013698,3]
[330682223,1719707440088,-500.0,0.00013698,3]
[330682224,1719707440098,-500.0,0.00013698,3]
[330682225,1719707440107,-3123.57,0.00013698,3]
[330682226,1719707440119,-649.87,0.00013698,3]
[330682227,1719707440128,-1077.61,0.00013698,3]
[330682228,1719707440138,-500.0,0.00013698,3]
[330682229,1719707440148,-500.0,0.00013698,3]
[330682230,1719707440158,-884.9,0.00013698,3]
[330682231,1719707440169,-580.64,0.00013698,3]
[330682232,1719707440179,-151.0,0.00013698,2]
[330682233,1719707440188,-151.0,0.00013698,2]
[330682234,1719707440198,-151.0,0.00013698,2]
[330682235,1719707440207,-500.0,0.00013698,3]
[330682236,1719707440217,-151.0,0.00013699,2]
[330682237,1719707440227,-151.0,0.00013699,2]
[330682238,1719707440238,-151.0,0.00013699,2]
[330682239,1719707440247,-199.09,0.00013699,2]
[330682240,1719707440258,-185.74,0.00013699,2]
[330682241,1719707440268,-408.07543191,0.00013699,5]
[330682242,1719707440277,-151.0,0.00013699,2]
[330682243,1719707440286,-24635.522073,0.000137,2]
[330682244,1719707440296,-151.0,0.000137,2]
[330682245,1719707440306,-151.0,0.000137,2]
[330682246,1719707440315,-151.0,0.000137,2]
[330682247,1719707440324,-151.0,0.000137,2]
[330682248,1719707440335,-151.0,0.000137,2]
[330682249,1719707440345,-152.022173,0.000137,2]
[330682250,1719707440354,-700.0,0.000137,5]
[330682251,1719707440363,-1915.0,0.000137,2]
[330682252,1719707440373,-170.45168611,0.00013708,2]
[330682253,1719707440382,-167591.76655406,0.00013717,2]
[330682254,1719707440954,-151.0,0.00013698,2]
[330682255,1719707440964,-186.21932,0.00013717,2]
[330682351,1719707442735,-500.0,0.00013698,3]
[330682352,1719707442744,-1670.24,0.00013698,3]
[330682353,1719707442755,-1750.9,0.00013698,3]
[330682354,1719707442764,-372.71554822,0.00013698,3]
[330682355,1719707442811,-127.28445178,0.00013698,3]
[330682356,1719707442821,-119174.0786832,0.00013717,2]
[330682357,1719707442831,-296.21544,0.00013717,2]
[330682358,1719707442841,-296.21544,0.00013717,2]
[330682359,1719707442850,-151.0,0.00013717,2]
[330682360,1719707442860,-240.909842,0.00013717,2]
[330682361,1719707442869,-240.909842,0.00013717,2]
[330682362,1719707442879,-151.0,0.00013717,2]
[330682363,1719707442889,-157.085641,0.00013717,2]
[330682364,1719707442898,-157.085641,0.00013717,2]
[330682365,1719707442907,-151.0,0.00013717,2]
[330682366,1719707442918,-159.20376165,0.00013744,2]
[330682367,1719707442927,-150.0,0.00013747,2]
[330682368,1719707442936,-174.01036977,0.00013753,2]
[330682369,1719707442946,-5374.12764471,0.00013753,2]
[330682370,1719707442955,-151.0,0.00013753,2]
[330682371,1719707442965,-164.03076331,0.00013784,2]
[330682372,1719707442974,-674.95855698,0.0001379,2]
[330682373,1719707442983,-674.95855695,0.0001379,2]
[330682374,1719707442993,-674.95855695,0.0001379,2]
[330682375,1719707443002,-1000.0,0.000138,5]
[330682376,1719707443011,-5916.48029099,0.00013807,2]
[330682377,1719707443021,-209.66596824,0.00013807,2]
[330682378,1719707443030,-151.0,0.00013807,2]
[330682379,1719707443039,-229.2,0.00013807,2]
[330682380,1719707443048,-151.0,0.00013807,2]
[330682381,1719707443057,-151.0,0.00013807,2]
[330682382,1719707443067,-151.0,0.00013807,2]
[330682383,1719707443076,-151.0,0.00013807,2]
[330682384,1719707443088,-151.0,0.00013807,2]
[330682385,1719707443097,-1585.23,0.00013807,3]
[330682386,1719707443106,-500.0,0.00013807,3]
[330682387,1719707443115,-1434.62,0.00013807,3]
[330682388,1719707443126,-953.47,0.00013807,3]
[330682389,1719707443135,-1393.7,0.00013807,3]
[330682390,1719707443145,-585.19,0.00013807,3]
[330682391,1719707443157,-894.93,0.00013807,3]
[330682392,1719707443167,-2448.07,0.00013807,3]
[330682393,1719707443176,-2456.37,0.00013807,3]
[330682394,1719707443185,-2869.26,0.00013807,3]
[330682395,1719707443195,-1763.12,0.00013807,3]
[330682396,1719707443205,-929.66,0.00013807,3]
[330682397,1719707443214,-600.0,0.00013808,2]
[330682398,1719707443224,-700.0,0.00013808,2]
[330682399,1719707443233,-1244.32,0.00013808,3]
[330682400,1719707443242,-804.68,0.00013808,3]
[330682401,1719707443251,-2416.26,0.00013808,3]
[330682402,1719707443260,-1081.14,0.00013808,3]
[330682403,1719707443269,-500.0,0.00013808,3]
[330682404,1719707443278,-500.0,0.00013808,3]
[330682405,1719707443287,-500.0,0.00013808,3]
[330682406,1719707443295,-500.0,0.00013808,3]
[330682407,1719707443304,-2624.06,0.00013808,3]
[330682408,1719707443313,-500.0,0.00013808,3]
[330682409,1719707443323,-500.0,0.00013808,3]
[330682410,1719707443332,-500.0,0.00013808,3]
[330682411,1719707443341,-500.0,0.00013808,3]
[330682412,1719707443351,-151.0,0.00013808,2]
[330682413,1719707443360,-151.0,0.00013808,2]
[330682414,1719707443369,-151.0,0.00013808,2]
[330682415,1719707443378,-285.180718,0.00013808,2]
[330682416,1719707443387,-500.0,0.00013808,3]
[330682417,1719707443396,-500.0,0.00013808,3]
[330682418,1719707443405,-500.0,0.00013808,3]
[330682419,1719707443415,-500.0,0.00013808,3]
[330682420,1719707443425,-500.0,0.00013808,3]
[330682421,1719707443434,-500.0,0.00013808,3]
[330682422,1719707443443,-500.0,0.00013808,3]
[330682423,1719707443452,-500.0,0.00013808,3]
[330682424,1719707443461,-500.0,0.00013808,3]
[330682425,1719707443471,-592.55647898,0.00013808,3]
[330682426,1719707443480,-500.0,0.00013808,3]
[330682427,1719707443489,-500.0,0.00013808,3]
[330682428,1719707443498,-500.0,0.00013808,3]
[330682429,1719707443508,-500.0,0.00013808,3]
[330682430,1719707443517,-500.0,0.00013808,3]
[330682431,1719707443527,-500.0,0.00013808,3]
[330682432,1719707443536,-500.0,0.00013808,3]
[330682433,1719707443545,-500.0,0.00013808,3]
[330682434,1719707443555,-589.63688035,0.00013808,3]
[330682435,1719707443564,-2980.55,0.00013808,3]
[330682436,1719707443573,-515.07,0.00013808,3]
[330682437,1719707443582,-500.0,0.00013808,3]
[330682438,1719707443592,-500.0,0.00013808,3]
[330682439,1719707443602,-500.0,0.00013808,3]
[330682440,1719707443612,-500.0,0.00013808,3]
[330682441,1719707443621,-500.0,0.00013808,3]
[330682442,1719707443631,-500.0,0.00013808,3]
[330682443,1719707443640,-500.0,0.00013808,3]
[330682444,1719707443650,-500.0,0.00013808,3]
[330682445,1719707443660,-500.0,0.00013808,3]
[330682446,1719707443670,-500.0,0.00013808,3]
[330682447,1719707443680,-500.0,0.00013808,3]
[330682448,1719707443689,-500.0,0.00013808,3]
[330682449,1719707443699,-500.0,0.00013808,3]
[330682450,1719707443708,-2258.86,0.00013808,3]
[330682451,1719707443717,-500.0,0.00013808,3]
[330682452,1719707443726,-500.0,0.00013808,3]
[330682453,1719707443735,-500.0,0.00013808,3]
[330682454,1719707443744,-528.39,0.00013808,3]
[330682455,1719707443754,-500.0,0.00013808,3]
[330682456,1719707443763,-500.0,0.00013808,3]
[330682457,1719707443772,-506.58,0.00013808,3]
[330682458,1719707443782,-500.0,0.00013808,3]
[330682459,1719707443791,-500.0,0.00013808,3]
[330682460,1719707443801,-500.0,0.00013808,3]
[330682461,1719707443812,-500.0,0.00013808,3]
[330682462,1719707443822,-500.0,0.00013808,3]
[330682463,1719707443832,-500.0,0.00013808,3]
[330682464,1719707443843,-500.0,0.00013808,3]
[330682465,1719707443853,-500.0,0.00013808,3]
[330682466,1719707443864,-500.0,0.00013808,3]
[330682467,1719707443875,-500.0,0.00013808,3]
[330682468,1719707443884,-151.0,0.00013808,2]
[330682469,1719707443894,-151.0,0.00013808,2]
[330682470,1719707443904,-151.0,0.00013808,2]
[330682471,1719707443915,-151.0,0.00013808,2]
[330682472,1719707443924,-500.0,0.00013808,3]
[330682473,1719707443934,-500.0,0.00013808,3]
[330682474,1719707443944,-500.0,0.00013808,3]
[330682475,1719707443953,-500.0,0.00013808,3]
[330682476,1719707443963,-500.0,0.00013808,3]
[330682477,1719707443973,-500.0,0.00013808,3]
[330682478,1719707443982,-500.0,0.00013808,3]
[330682479,1719707443991,-500.0,0.00013808,3]
[330682480,1719707444001,-500.0,0.00013808,3]
[330682481,1719707444011,-500.0,0.00013808,3]
[330682482,1719707444021,-500.0,0.00013808,3]
[330682483,1719707444031,-776.52,0.00013808,3]
[330682484,1719707444040,-500.0,0.00013808,3]
[330682485,1719707444050,-500.0,0.00013808,3]
[330682486,1719707444060,-500.0,0.00013808,3]
[330682487,1719707444070,-500.0,0.00013808,3]
[330682488,1719707444084,-500.0,0.00013808,3]
[330682489,1719707444095,-500.0,0.00013808,3]
[330682490,1719707444104,-500.0,0.00013808,3]
[330682491,1719707444113,-500.0,0.00013808,3]
[330682492,1719707444125,-683.4,0.00013808,3]
[330682493,1719707444134,-500.0,0.00013808,3]
[330682494,1719707444144,-500.0,0.00013808,3]
[330682495,1719707444154,-1975.75,0.00013808,3]
[330682496,1719707444168,-500.0,0.00013808,3]
[330682497,1719707444177,-500.0,0.00013808,3]
[330682498,1719707444186,-580.15268272,0.00013808,3]
[330682499,1719707444195,-500.0,0.00013808,3]
[330682500,1719707444205,-747.34,0.00013808,3]
[330682501,1719707444214,-522.76,0.00013808,3]
[330682502,1719707444223,-1065.77,0.00013808,3]
[330682503,1719707444232,-701.23,0.00013808,3]
[330682504,1719707444242,-500.0,0.00013808,3]
[330682505,1719707444252,-654.48,0.00013808,3]
[330682506,1719707444261,-500.0,0.00013808,3]
[330682507,1719707444271,-1095.7,0.00013808,3]
[330682508,1719707444281,-1850.64,0.00013808,3]
[330682509,1719707444290,-757.42,0.00013808,3]
[330682510,1719707444302,-500.0,0.00013808,3]
[330682511,1719707444313,-500.0,0.00013808,3]
[330682512,1719707444323,-500.0,0.00013808,3]
[330682513,1719707444334,-565.27,0.00013808,3]
[330682514,1719707444345,-500.0,0.00013808,3]
[330682515,1719707444355,-680.24,0.00013808,3]
[330682516,1719707444365,-500.0,0.00013808,3]
[330682517,1719707444374,-751.29,0.00013808,3]
[330682518,1719707444383,-518.16881103,0.00013808,3]
[330682519,1719707444393,-500.0,0.00013808,3]
[330682520,1719707444402,-500.0,0.00013808,3]
[330682521,1719707444411,-500.0,0.00013808,3]
[330682522,1719707444421,-500.0,0.00013808,3]
[330682523,1719707444430,-500.0,0.00013808,3]
[330682524,1719707444439,-500.0,0.00013808,3]
[330682525,1719707444448,-1108.41,0.00013808,3]
[330682526,1719707444457,-500.0,0.00013808,3]
[330682527,1719707444466,-500.0,0.00013808,3]
[330682528,1719707444475,-500.0,0.00013808,3]
[330682529,1719707444485,-1552.82,0.00013808,3]
[330682530,1719707444494,-500.0,0.00013808,3]
[330682531,1719707444504,-500.0,0.00013808,3]
[330682532,1719707444513,-907.31,0.00013808,3]
[330682533,1719707444522,-500.0,0.00013808,3]
[330682534,1719707444531,-500.0,0.00013808,3]
[330682535,1719707444540,-572.54,0.00013808,3]
[330682536,1719707444549,-500.0,0.00013808,3]
[330682537,1719707444559,-500.0,0.00013808,3]
[330682538,1719707444568,-359.21122989,0.00013808,3]
[330682539,1719707444609,-140.78877011,0.00013808,3]
[330682540,1719707444620,-500.0,0.00013808,3]
[330682541,1719707444630,-500.0,0.00013808,3]
[330682542,1719707444959,-583.37,0.00013808,3]
[330682543,1719707444993,-102.8054366,0.00013808,3]
[330682544,1719707445496,-397.1945634,0.00013808,3]
[330682545,1719707445506,-500.0,0.00013808,3]
[330682546,1719707445515,-153.16663702,0.00013808,3]
[330682547,1719707445944,-346.83336298,0.00013808,3]
[330682548,1719707445954,-500.0,0.00013808,3]
[330682549,1719707445964,-500.0,0.00013808,3]
[330682550,1719707445974,-947.53,0.00013808,3]
[330682551,1719707445984,-573.94,0.00013808,3]
[330682552,1719707445994,-662.77,0.00013808,3]
[330682553,1719707446004,-500.0,0.00013808,3]
[330682554,1719707446014,-500.0,0.00013808,3]
[330682555,1719707446024,-500.0,0.00013808,3]
[330682556,1719707446034,-1053.34,0.00013808,3]
[330682557,1719707446044,-500.0,0.00013808,3]
[330682558,1719707446054,-691.07,0.00013808,3]
[330682559,1719707446064,-500.0,0.00013808,3]
[330682560,1719707446075,-500.0,0.00013808,3]
[330682561,1719707446090,-500.0,0.00013808,3]
[330682562,1719707446100,-645.82,0.00013808,3]
[330682563,1719707446110,-617.4,0.00013808,3]
[330682564,1719707446122,-500.0,0.00013808,3]
[330682565,1719707446132,-500.0,0.00013808,3]
[330682566,1719707446142,-500.0,0.00013808,3]
[330682567,1719707446154,-631.38,0.00013808,3]
[330682568,1719707446167,-500.0,0.00013808,2]
[330682569,1719707446177,-914.5,0.00013808,3]
[330682570,1719707446187,-660.19,0.00013808,3]
[330682571,1719707446201,-601.77,0.00013808,3]
[330682572,1719707446212,-500.0,0.00013808,3]
[330682573,1719707446222,-287.25308919,0.00013808,3]
[330682574,1719707446232,-539.49,0.00013808,3]
[330682575,1719707446242,-500.0,0.00013808,3]
[330682576,1719707446252,-500.0,0.00013808,3]
[330682577,1719707446263,-1107.49,0.00013808,3]
[330682578,1719707446272,-500.0,0.00013808,3]
[330682579,1719707446283,-2012.95,0.00013808,3]
[330682580,1719707446296,-2014.68,0.00013808,3]
[330682581,1719707446307,-567.78,0.00013808,3]
[330682582,1719707446316,-502.47,0.00013808,3]
[330682583,1719707446326,-500.0,0.00013808,3]
[330682584,1719707446336,-500.0,0.00013808,3]
[330682585,1719707446346,-500.0,0.00013808,3]
[330682586,1719707446356,-500.0,0.00013808,3]
[330682587,1719707446368,-1236.2,0.00013808,3]
[330682588,1719707446382,-500.0,0.00013808,3]
[330682589,1719707446392,-500.0,0.00013808,3]
[330682590,1719707446402,-500.0,0.00013808,3]
[330682591,1719707446413,-500.0,0.00013808,3]
[330682592,1719707446423,-500.0,0.00013808,3]
[330682593,1719707446432,-500.0,0.00013808,3]
[330682594,1719707446442,-500.0,0.00013808,3]
[330682595,1719707446452,-1252.21,0.00013808,3]
[330682596,1719707446463,-580.53,0.00013808,3]
[330682597,1719707446472,-894.37,0.00013808,3]
[330682598,1719707446482,-151.0,0.00013808,2]
[330682599,1719707446492,-151.0,0.00013808,2]
[330682600,1719707446502,-500.0,0.00013808,3]
[330682601,1719707446512,-500.0,0.00013808,3]
[330682602,1719707446522,-612.94,0.00013808,3]
[330682603,1719707446532,-500.0,0.00013808,3]
[330682604,1719707446542,-151.0,0.00013808,2]
[330682605,1719707446552,-588.39,0.00013808,3]
[330682606,1719707446561,-875.33,0.00013808,3]
[330682607,1719707446571,-500.0,0.00013808,3]
[330682608,1719707446581,-546.44,0.00013808,3]
[330682609,1719707446591,-500.0,0.00013808,3]
[330682610,1719707446600,-1380.11,0.00013808,3]
[330682611,1719707446611,-233.07946,0.00013808,2]
[330682612,1719707446621,-500.0,0.00013808,3]
[330682613,1719707446632,-500.0,0.00013808,3]
[330682614,1719707446641,-500.0,0.00013808,3]
[330682615,1719707446651,-654.88,0.00013808,3]
[330682616,1719707446662,-598.56,0.00013808,3]
[330682617,1719707446671,-580.79,0.00013808,3]
[330682618,1719707446681,-738.95,0.00013808,3]
[330682619,1719707446690,-500.0,0.00013808,3]
[330682620,1719707446700,-500.0,0.00013808,3]
[330682621,1719707446710,-686.04,0.00013808,3]
[330682622,1719707446723,-635.43,0.00013808,3]
[330682623,1719707446734,-500.0,0.00013808,3]
[330682624,1719707446744,-1038.75,0.00013808,3]
[330682625,1719707446754,-500.0,0.00013808,3]
[330682626,1719707446764,-500.0,0.00013808,3]
[330682627,1719707446774,-500.0,0.00013808,3]
[330682628,1719707446784,-500.0,0.00013808,3]
[330682629,1719707446794,-500.0,0.00013808,3]
[330682630,1719707446804,-151.0,0.00013808,2]
[330682631,1719707446815,-500.0,0.00013808,3]
[330682632,1719707446825,-1163.13,0.00013808,3]
[330682633,1719707446835,-151.0,0.00013808,2]
[330682634,1719707446845,-960.06,0.00013808,3]
[330682635,1719707446855,-151.0,0.00013808,2]
[330682636,1719707446866,-151.0,0.00013808,2]
[330682637,1719707446876,-500.0,0.00013808,3]
[330682638,1719707446886,-500.0,0.00013808,3]
[330682639,1719707446896,-500.0,0.00013808,3]
[330682640,1719707446906,-689.52,0.00013808,3]
[330682641,1719707446916,-500.0,0.00013808,3]
[330682642,1719707446926,-500.0,0.00013808,3]
[330682643,1719707446936,-587.77,0.00013808,3]
[330682644,1719707446946,-732.07,0.00013808,3]
[330682645,1719707446956,-500.0,0.00013808,3]
[330682646,1719707446966,-598.76,0.00013808,3]
[330682647,1719707446976,-500.0,0.00013808,3]
[330682648,1719707446986,-500.0,0.00013808,3]
[330682650,1719707446996,-500.0,0.00013808,3]
[330682652,1719707447006,-500.0,0.00013808,3]
[330682653,1719707447016,-572.77,0.00013808,3]
[330682654,1719707447026,-1442.8,0.00013808,3]
[330682655,1719707447036,-500.0,0.00013808,3]
[330682656,1719707447046,-508.3,0.00013808,3]
[330682657,1719707447056,-500.0,0.00013808,3]
[330682658,1719707447066,-155.80089021,0.00013808,3]
[330682659,1719707447076,-500.0,0.00013808,3]
[330682660,1719707447089,-500.0,0.00013808,3]
[330682661,1719707447099,-631.61,0.00013808,3]
[330682662,1719707447109,-500.0,0.00013808,3]
[330682663,1719707447119,-500.0,0.00013808,3]
[330682664,1719707447129,-500.0,0.00013808,3]
[330682665,1719707447139,-917.47,0.00013808,3]
[330682666,1719707447148,-500.0,0.00013808,3]
[330682667,1719707447161,-151.0,0.00013808,2]
[330682668,1719707447172,-151.0,0.00013808,2]
[330682669,1719707447182,-151.0,0.00013808,2]
[330682670,1719707447195,-151.0,0.00013808,2]
[330682671,1719707447204,-500.0,0.00013808,3]
[330682672,1719707447214,-500.0,0.00013808,3]
[330682673,1719707447224,-500.0,0.00013808,3]
[330682674,1719707447234,-1009.32,0.00013808,3]
[330682675,1719707447244,-500.0,0.00013808,3]
[330682676,1719707447254,-500.0,0.00013808,3]
[330682677,1719707447264,-165.99351762,0.00013808,3]
[330682678,1719707447273,-2832.7,0.00013808,3]
[330682679,1719707447283,-500.0,0.00013808,3]
[330682680,1719707447292,-500.0,0.00013808,3]
[330682681,1719707447302,-151.0,0.00013808,2]
[330682682,1719707447312,-500.0,0.00013808,3]
[330682683,1719707447322,-151.0,0.00013808,2]
[330682684,1719707447331,-151.0,0.00013808,2]
[330682685,1719707447341,-151.0,0.00013808,2]
[330682686,1719707447350,-500.0,0.00013808,3]
[330682687,1719707447359,-500.0,0.00013808,3]
[330682688,1719707447369,-500.0,0.00013808,3]
[330682689,1719707447379,-500.0,0.00013808,3]
[330682690,1719707447388,-500.0,0.00013808,3]
[330682691,1719707447578,-500.0,0.00013808,3]
[330682692,1719707447591,-500.0,0.00013808,3]
[330682693,1719707447601,-553.02,0.00013808,3]
[330682694,1719707447611,-759.85,0.00013808,3]
[330682695,1719707447621,-500.0,0.00013808,3]
[330682696,1719707447630,-544.29,0.00013808,3]
[330682697,1719707447640,-2001.73,0.00013808,3]
[330682698,1719707447649,-500.0,0.00013808,3]
[330682699,1719707447658,-561.93,0.00013808,3]
[330682700,1719707447668,-702.33,0.00013808,3]
[330682701,1719707447678,-500.0,0.00013808,3]
[330682702,1719707447688,-2222.17,0.00013808,3]
[330682703,1719707447697,-500.0,0.00013808,3]
[330682704,1719707447707,-500.0,0.00013808,3]
[330682705,1719707447716,-1674.5,0.00013808,3]
[330682706,1719707447726,-805.61,0.00013808,3]
[330682707,1719707447735,-500.0,0.00013808,3]
[330682708,1719707447744,-500.0,0.00013808,3]
[330682709,1719707447755,-311.35036127,0.00013808,3]
[330682710,1719707447824,-190.71963873,0.00013808,3]
[330682711,1719707447834,-151.0,0.00013808,2]
[330682712,1719707447843,-151.0,0.00013808,2]